[Event "*** Titled Tuesday Blitz"]
[Site "Chess.com"]
[Date "2019.08.06"]
[Round "1"]
[White "tgpgoat"]
[Black "PchelkinVK"]
[Result "0-1"]
[WhiteElo "1981"]
[BlackElo "2524"]
[TimeControl "180+2"]
[EndTime "13:05:25 PDT"]
[Termination "PchelkinVK won by resignation"]

1. e4 {[%clk 0:02:59.5]} 1... e6 {[%clk 0:02:59.8]} 2. d4 {[%clk 0:02:48.1]}
2... d5 {[%clk 0:03:00.5]} 3. Nd2 {[%clk 0:02:41.8]} 3... c5 {[%clk 0:02:59.7]}
4. exd5 {[%clk 0:02:41.3]} 4... exd5 {[%clk 0:02:56.9]} 5. dxc5 {[%clk
0:02:40.5]} 5... Bxc5 {[%clk 0:02:56.8]} 6. Ngf3 {[%clk 0:02:42.4]} 6... Nc6
{[%clk 0:02:50.2]} 7. Nb3 {[%clk 0:02:41.9]} 7... Bb6 {[%clk 0:02:50]} 8. c3
{[%clk 0:02:43.1]} 8... Nge7 {[%clk 0:02:48.4]} 9. Bf4 {[%clk 0:02:43.3]} 9...
O-O {[%clk 0:02:49.1]} 10. Be2 {[%clk 0:02:44.3]} 10... Ng6 {[%clk 0:02:44.6]}
11. Bg3 {[%clk 0:02:44.8]} 11... f5 {[%clk 0:02:45.5]} 12. h3 {[%clk 0:02:37.1]}
12... f4 {[%clk 0:02:42.7]} 13. Bh2 {[%clk 0:02:38.2]} 13... Bf5 {[%clk
0:02:43.6]} 14. O-O {[%clk 0:02:39.2]} 14... Be4 {[%clk 0:02:40.6]} 15. Qd2
{[%clk 0:02:35.4]} 15... Qf6 {[%clk 0:02:39.9]} 16. Rad1 {[%clk 0:02:34.9]}
16... Rae8 {[%clk 0:02:40.1]} 17. Rfe1 {[%clk 0:02:29.1]} 17... Nh4 {[%clk
0:02:38.4]} 18. Nxh4 {[%clk 0:02:16.7]} 18... Qxh4 {[%clk 0:02:38.9]} 19. Bg4
{[%clk 0:02:00.7]} 19... Ne5 {[%clk 0:02:14.8]} 20. Nd4 {[%clk 0:01:11.9]} 20...
Nxg4 {[%clk 0:02:06.2]} 21. Bxf4 {[%clk 0:00:56.6]} 21... Nxf2 {[%clk
0:01:55.6]} 22. Qxf2 {[%clk 0:00:25]} 0-1

[Event "*** Titled Tuesday Blitz"]
[Site "Chess.com"]
[Date "2019.08.06"]
[Round "1"]
[White "joppie2"]
[Black "Mr_Sinigami"]
[Result "1-0"]
[WhiteElo "2893"]
[BlackElo "2459"]
[TimeControl "180+2"]
[EndTime "13:05:30 PDT"]
[Termination "joppie2 won by resignation"]

1. e4 {[%clk 0:03:00.9]} 1... c5 {[%clk 0:02:54.3]} 2. Nf3 {[%clk 0:03:01.9]}
2... e6 {[%clk 0:02:55.1]} 3. c3 {[%clk 0:03:01]} 3... Nf6 {[%clk 0:02:54.2]} 4.
e5 {[%clk 0:03:02.1]} 4... Nd5 {[%clk 0:02:55.1]} 5. d4 {[%clk 0:03:04]} 5...
cxd4 {[%clk 0:02:55.9]} 6. cxd4 {[%clk 0:03:05.9]} 6... d6 {[%clk 0:02:57.1]} 7.
Bc4 {[%clk 0:03:04.8]} 7... Be7 {[%clk 0:02:53.5]} 8. O-O {[%clk 0:03:03.6]}
8... Nc6 {[%clk 0:02:53.5]} 9. Qe2 {[%clk 0:02:51.9]} 9... a6 {[%clk 0:02:48.3]}
10. Nc3 {[%clk 0:02:53]} 10... Nxc3 {[%clk 0:02:47.4]} 11. bxc3 {[%clk
0:02:54.9]} 11... O-O {[%clk 0:02:45.1]} 12. Bf4 {[%clk 0:02:54.4]} 12... dxe5
{[%clk 0:02:43.4]} 13. dxe5 {[%clk 0:02:56.3]} 13... Qc7 {[%clk 0:02:43.9]} 14.
Bd3 {[%clk 0:02:56.4]} 14... Rd8 {[%clk 0:02:34.4]} 15. Rfd1 {[%clk 0:02:48.8]}
15... Bd7 {[%clk 0:02:30.3]} 16. h4 {[%clk 0:02:49.6]} 16... Be8 {[%clk
0:02:15.8]} 17. Ng5 {[%clk 0:02:39.4]} 17... g6 {[%clk 0:02:10.3]} 18. h5 {[%clk
0:02:34.5]} 18... Rd5 {[%clk 0:01:49.2]} 19. hxg6 {[%clk 0:02:33.6]} 19... hxg6
{[%clk 0:01:49.2]} 20. Qg4 {[%clk 0:01:52.5]} 20... Nxe5 {[%clk 0:01:40.7]} 21.
Qh4 {[%clk 0:01:50]} 21... Bxg5 {[%clk 0:01:37.3]} 22. Bxg5 {[%clk 0:01:51.9]}
22... Nxd3 {[%clk 0:01:33.9]} 23. Rxd3 {[%clk 0:01:46.5]} 23... Qc5 {[%clk
0:01:17.9]} 24. Rh3 {[%clk 0:01:33.4]} 1-0

[Event "*** Titled Tuesday Blitz"]
[Site "Chess.com"]
[Date "2019.08.06"]
[Round "1"]
[White "GadimbayliA"]
[Black "pedromartinez91"]
[Result "1-0"]
[WhiteElo "2886"]
[BlackElo "2459"]
[TimeControl "180+2"]
[EndTime "13:05:37 PDT"]
[Termination "GadimbayliA won by resignation"]

1. e4 {[%clk 0:03:01.9]} 1... e6 {[%clk 0:03:01.2]} 2. d4 {[%clk 0:03:01.7]}
2... d5 {[%clk 0:03:02.9]} 3. Nd2 {[%clk 0:03:02.5]} 3... Nf6 {[%clk 0:03:04.5]}
4. e5 {[%clk 0:03:02.1]} 4... Ne4 {[%clk 0:03:05.7]} 5. Nxe4 {[%clk 0:03:02.6]}
5... dxe4 {[%clk 0:03:07.6]} 6. Bc4 {[%clk 0:03:04.1]} 6... Qd7 {[%clk
0:03:06.7]} 7. c3 {[%clk 0:03:00.4]} 7... b5 {[%clk 0:03:03.3]} 8. Bb3 {[%clk
0:02:56.2]} 8... Bb7 {[%clk 0:03:04.2]} 9. Ne2 {[%clk 0:02:56.6]} 9... c5 {[%clk
0:03:02.2]} 10. Be3 {[%clk 0:02:50.7]} 10... cxd4 {[%clk 0:02:56.5]} 11. Nxd4
{[%clk 0:02:48]} 11... a6 {[%clk 0:02:57.1]} 12. O-O {[%clk 0:02:48]} 12... Nc6
{[%clk 0:02:58.2]} 13. Nxc6 {[%clk 0:02:26.4]} 13... Qxc6 {[%clk 0:02:51.2]} 14.
Qg4 {[%clk 0:02:25.7]} 14... g6 {[%clk 0:02:45.8]} 15. Rad1 {[%clk 0:02:23.1]}
15... h5 {[%clk 0:02:45.7]} 16. Qf4 {[%clk 0:02:20.2]} 16... Be7 {[%clk
0:02:46]} 17. Bc2 {[%clk 0:01:54]} 17... Rd8 {[%clk 0:02:19.6]} 18. Rxd8+ {[%clk
0:01:51]} 18... Bxd8 {[%clk 0:02:21.5]} 19. Rd1 {[%clk 0:01:52.1]} 19... Be7
{[%clk 0:02:22.5]} 20. Rd4 {[%clk 0:01:48.7]} 20... g5 {[%clk 0:02:14]} 21. Qg3
{[%clk 0:01:48.6]} 21... h4 {[%clk 0:01:54.5]} 22. Qg4 {[%clk 0:01:47]} 22... h3
{[%clk 0:01:55.9]} 23. Bxe4 {[%clk 0:01:18]} 23... Qc7 {[%clk 0:01:56.7]} 24.
Qf3 {[%clk 0:01:16.4]} 24... Bxe4 {[%clk 0:01:33.9]} 25. Qxe4 {[%clk 0:01:18.3]}
25... hxg2 {[%clk 0:01:34.6]} 26. Qa8+ {[%clk 0:01:17.9]} 26... Bd8 {[%clk
0:01:32.7]} 27. Bxg5 {[%clk 0:01:16.8]} 27... O-O {[%clk 0:01:23]} 28. Rxd8
{[%clk 0:01:16.3]} 28... Qxe5 {[%clk 0:01:18.7]} 1-0

[Event "*** Titled Tuesday Blitz"]
[Site "Chess.com"]
[Date "2019.08.06"]
[Round "1"]
[White "leclash"]
[Black "Mikhail_Golubev"]
[Result "1-0"]
[WhiteElo "2209"]
[BlackElo "2569"]
[TimeControl "180+2"]
[EndTime "13:05:39 PDT"]
[Termination "leclash won on time"]

1. d4 {[%clk 0:02:28.6]} 1... Nf6 {[%clk 0:02:57.5]} 2. c4 {[%clk 0:02:29.6]}
2... g6 {[%clk 0:02:58.4]} 3. Nc3 {[%clk 0:02:30.8]} 3... Bg7 {[%clk 0:02:59.3]}
4. e4 {[%clk 0:02:31.8]} 4... d6 {[%clk 0:03:00.5]} 5. Nge2 {[%clk 0:02:32.8]}
5... e5 {[%clk 0:02:36.2]} 6. d5 {[%clk 0:02:26.2]} 6... Nh5 {[%clk 0:02:13.6]}
7. Be3 {[%clk 0:01:51.7]} 7... f5 {[%clk 0:02:10.2]} 8. exf5 {[%clk 0:01:34.1]}
8... gxf5 {[%clk 0:00:21.2]} 9. Ng3 {[%clk 0:01:34.1]} 9... Nf4 {[%clk 0:00:21]}
10. Bxf4 {[%clk 0:01:29.8]} 10... exf4 {[%clk 0:00:02.7]} 11. Qh5+ {[%clk
0:01:30]} 11... Kf8 {[%clk 0:00:02.6]} 12. Nxf5 {[%clk 0:01:23.6]} 1-0

[Event "*** Titled Tuesday Blitz"]
[Site "Chess.com"]
[Date "2019.08.06"]
[Round "1"]
[White "MITerryble"]
[Black "Misha_Bilous"]
[Result "1-0"]
[WhiteElo "2880"]
[BlackElo "2445"]
[TimeControl "180+2"]
[EndTime "13:05:47 PDT"]
[Termination "MITerryble won by resignation"]

1. e4 {[%clk 0:03:01.9]} 1... c5 {[%clk 0:03:00.4]} 2. Nf3 {[%clk 0:03:02.8]}
2... d6 {[%clk 0:03:01.5]} 3. Bb5+ {[%clk 0:03:03.3]} 3... Bd7 {[%clk
0:03:01.8]} 4. Bxd7+ {[%clk 0:03:04.1]} 4... Qxd7 {[%clk 0:03:03.7]} 5. O-O
{[%clk 0:03:05]} 5... Nc6 {[%clk 0:03:05.2]} 6. c3 {[%clk 0:03:05.8]} 6... Nf6
{[%clk 0:03:05.6]} 7. d4 {[%clk 0:03:07.1]} 7... cxd4 {[%clk 0:03:00.8]} 8. cxd4
{[%clk 0:03:09]} 8... d5 {[%clk 0:03:02.1]} 9. e5 {[%clk 0:03:05.9]} 9... Ne4
{[%clk 0:03:03.1]} 10. Ne1 {[%clk 0:03:04.6]} 10... h6 {[%clk 0:02:41.8]} 11.
Nd3 {[%clk 0:03:04.9]} 11... Nxd4 {[%clk 0:02:30.3]} 12. f3 {[%clk 0:03:05.6]}
12... Ng5 {[%clk 0:02:27.4]} 13. Nc5 {[%clk 0:03:06.2]} 13... Ndxf3+ {[%clk
0:01:48.2]} 14. gxf3 {[%clk 0:03:02.9]} 14... Qc6 {[%clk 0:01:49.7]} 15. Nd3
{[%clk 0:02:53.3]} 15... e6 {[%clk 0:01:46.4]} 16. Nc3 {[%clk 0:02:49.6]} 16...
Bc5+ {[%clk 0:01:38.8]} 17. Kh1 {[%clk 0:02:48.8]} 17... d4 {[%clk 0:01:08.9]}
18. Nb1 {[%clk 0:02:45.7]} 18... O-O-O {[%clk 0:00:58.6]} 19. Nd2 {[%clk
0:02:42.2]} 19... Kb8 {[%clk 0:00:58.7]} 20. Qe2 {[%clk 0:02:42.9]} 20... Bb6
{[%clk 0:00:45.7]} 21. Ne4 {[%clk 0:02:42.8]} 21... Nxe4 {[%clk 0:00:43.8]} 22.
Qxe4 {[%clk 0:02:44.7]} 22... Qxe4 {[%clk 0:00:44.4]} 23. fxe4 {[%clk
0:02:45.4]} 23... Rd7 {[%clk 0:00:45]} 24. Bd2 {[%clk 0:02:46.2]} 24... Bd8
{[%clk 0:00:37.9]} 25. Rg1 {[%clk 0:02:42.1]} 25... g6 {[%clk 0:00:35.8]} 26.
Raf1 {[%clk 0:02:43.1]} 26... Rc7 {[%clk 0:00:32.5]} 27. Rg2 {[%clk 0:02:44.1]}
27... Rf8 {[%clk 0:00:26.1]} 28. Bxh6 {[%clk 0:02:43.4]} 28... Rh8 {[%clk
0:00:26.7]} 29. Bd2 {[%clk 0:02:43]} 29... Rh4 {[%clk 0:00:27.3]} 30. Re2 {[%clk
0:02:43.9]} 30... Rc2 {[%clk 0:00:27.2]} 31. Rff2 {[%clk 0:02:44.7]} 31... a6
{[%clk 0:00:23.9]} 32. Rxf7 {[%clk 0:02:43.9]} 32... Bg5 {[%clk 0:00:23.8]} 33.
Bxg5 {[%clk 0:02:43.7]} 33... Rxe2 {[%clk 0:00:23.2]} 34. Bxh4 {[%clk
0:02:44.9]} 34... Rd2 {[%clk 0:00:24.6]} 35. Nc5 {[%clk 0:02:46.2]} 35... Rxb2
{[%clk 0:00:25.6]} 36. Rd7 {[%clk 0:02:42.4]} 36... Rb5 {[%clk 0:00:26]} 37.
Nxe6 {[%clk 0:02:42.9]} 37... Rxe5 {[%clk 0:00:26]} 38. Bg3 {[%clk 0:02:43.7]}
1-0

[Event "*** Titled Tuesday Blitz"]
[Site "Chess.com"]
[Date "2019.08.06"]
[Round "1"]
[White "Saloni1299"]
[Black "capatl"]
[Result "0-1"]
[WhiteElo "1992"]
[BlackElo "2527"]
[TimeControl "180+2"]
[EndTime "13:05:49 PDT"]
[Termination "capatl won by resignation"]

1. e4 {[%clk 0:02:55.9]} 1... c5 {[%clk 0:02:59.2]} 2. Nf3 {[%clk 0:02:55.9]}
2... e6 {[%clk 0:03:00.3]} 3. d4 {[%clk 0:02:56.9]} 3... cxd4 {[%clk 0:03:01.6]}
4. Nxd4 {[%clk 0:02:58]} 4... a6 {[%clk 0:03:03.2]} 5. c4 {[%clk 0:02:59]} 5...
Qc7 {[%clk 0:03:04.2]} 6. Nc3 {[%clk 0:02:59.5]} 6... d6 {[%clk 0:03:05.3]} 7.
Be2 {[%clk 0:02:56.2]} 7... Nd7 {[%clk 0:03:06.8]} 8. O-O {[%clk 0:02:52.3]}
8... Ngf6 {[%clk 0:03:07.8]} 9. f4 {[%clk 0:02:47]} 9... Be7 {[%clk 0:03:08.1]}
10. b4 {[%clk 0:02:41]} 10... b5 {[%clk 0:02:56.1]} 11. Qd3 {[%clk 0:02:13.1]}
11... bxc4 {[%clk 0:02:48.4]} 12. Qxc4 {[%clk 0:02:15]} 12... Qxc4 {[%clk
0:02:48.9]} 13. Bxc4 {[%clk 0:02:16.5]} 13... Bb7 {[%clk 0:02:50.2]} 14. Bd3
{[%clk 0:02:13.6]} 14... d5 {[%clk 0:02:44.7]} 15. e5 {[%clk 0:02:09.8]} 15...
Bxb4 {[%clk 0:02:41.8]} 16. Bb2 {[%clk 0:02:09.6]} 16... Ng4 {[%clk 0:02:16]}
17. h3 {[%clk 0:01:49.2]} 17... Ne3 {[%clk 0:02:14.2]} 18. Rfe1 {[%clk
0:01:46.4]} 18... Nc4 {[%clk 0:02:07.9]} 19. Bxc4 {[%clk 0:01:47.3]} 19... dxc4
{[%clk 0:02:09.6]} 20. a3 {[%clk 0:01:46.2]} 20... Bc5 {[%clk 0:02:05.5]} 21.
Ne4 {[%clk 0:01:42.2]} 21... Bxe4 {[%clk 0:01:54]} 22. Rxe4 {[%clk 0:01:43.7]}
22... Rb8 {[%clk 0:01:53.3]} 23. Bc3 {[%clk 0:01:42]} 23... Rb3 {[%clk
0:01:33.3]} 24. Bb4 {[%clk 0:01:23.8]} 24... Rd3 {[%clk 0:01:22.2]} 0-1

[Event "*** Titled Tuesday Blitz"]
[Site "Chess.com"]
[Date "2019.08.06"]
[Round "1"]
[White "Mbneu"]
[Black "Fy_Rakotomaharo"]
[Result "0-1"]
[WhiteElo "2287"]
[BlackElo "2640"]
[TimeControl "180+2"]
[EndTime "13:05:52 PDT"]
[Termination "Fy_Rakotomaharo won on time"]

1. d4 {[%clk 0:02:57.6]} 1... Nf6 {[%clk 0:03:01]} 2. c4 {[%clk 0:02:58.4]} 2...
g6 {[%clk 0:03:02.5]} 3. Nc3 {[%clk 0:02:57.7]} 3... d5 {[%clk 0:03:03.6]} 4.
cxd5 {[%clk 0:02:59.5]} 4... Nxd5 {[%clk 0:03:05.5]} 5. g3 {[%clk 0:03:00.7]}
5... Bg7 {[%clk 0:03:04.9]} 6. Bg2 {[%clk 0:03:02.2]} 6... Nxc3 {[%clk
0:03:03.3]} 7. bxc3 {[%clk 0:03:04.1]} 7... c5 {[%clk 0:03:04.1]} 8. e3 {[%clk
0:03:05.4]} 8... O-O {[%clk 0:03:04.7]} 9. Ne2 {[%clk 0:03:07]} 9... Qc7 {[%clk
0:03:02.4]} 10. O-O {[%clk 0:03:07.1]} 10... Nc6 {[%clk 0:03:02.9]} 11. a4
{[%clk 0:03:07.1]} 11... Rd8 {[%clk 0:03:02.5]} 12. Ba3 {[%clk 0:03:02.9]} 12...
b6 {[%clk 0:03:01.5]} 13. Qc2 {[%clk 0:02:55]} 13... Ba6 {[%clk 0:03:02]} 14.
Rfd1 {[%clk 0:02:44.6]} 14... Rac8 {[%clk 0:03:01.5]} 15. dxc5 {[%clk
0:02:24.8]} 15... Ne5 {[%clk 0:02:52.1]} 16. cxb6 {[%clk 0:02:19.7]} 16... axb6
{[%clk 0:02:54]} 17. Nd4 {[%clk 0:02:14.1]} 17... Nc4 {[%clk 0:02:48.6]} 18. Bb4
{[%clk 0:02:14.4]} 18... Bf6 {[%clk 0:02:30.7]} 19. Nb5 {[%clk 0:02:08]} 19...
Qb8 {[%clk 0:02:12.1]} 20. Rxd8+ {[%clk 0:02:02.9]} 20... Rxd8 {[%clk
0:02:12.8]} 21. Rd1 {[%clk 0:02:03.8]} 21... Rc8 {[%clk 0:02:07.1]} 22. Qe4
{[%clk 0:01:56.8]} 22... Nb2 {[%clk 0:02:01.7]} 23. Rd2 {[%clk 0:01:48.8]} 23...
Nxa4 {[%clk 0:02:01.2]} 0-1

[Event "*** Titled Tuesday Blitz"]
[Site "Chess.com"]
[Date "2019.08.06"]
[Round "1"]
[White "Doraemon7"]
[Black "ChrisTool2"]
[Result "1-0"]
[WhiteElo "2637"]
[BlackElo "2280"]
[TimeControl "180+2"]
[EndTime "13:06:01 PDT"]
[Termination "Doraemon7 won by resignation"]

1. Nf3 {[%clk 0:03:01.9]} 1... d5 {[%clk 0:02:49.2]} 2. d4 {[%clk 0:03:02.8]}
2... Nf6 {[%clk 0:02:50.1]} 3. c4 {[%clk 0:03:03.6]} 3... e6 {[%clk 0:02:51.3]}
4. g3 {[%clk 0:03:04]} 4... dxc4 {[%clk 0:02:51.3]} 5. Bg2 {[%clk 0:03:05]} 5...
Nc6 {[%clk 0:02:52.4]} 6. O-O {[%clk 0:03:02.3]} 6... Rb8 {[%clk 0:02:53.6]} 7.
Nc3 {[%clk 0:03:02]} 7... b5 {[%clk 0:02:45.5]} 8. Ne5 {[%clk 0:03:00.5]} 8...
Nxe5 {[%clk 0:02:08.7]} 9. dxe5 {[%clk 0:03:02.4]} 9... Nd7 {[%clk 0:02:08]} 10.
Qd4 {[%clk 0:02:53.1]} 10... c5 {[%clk 0:01:53.5]} 11. Qf4 {[%clk 0:02:52.1]}
11... Qc7 {[%clk 0:01:48.7]} 12. Rd1 {[%clk 0:02:43]} 12... Qxe5 {[%clk
0:01:29.4]} 13. Rxd7 {[%clk 0:02:37.3]} 13... Qxf4 {[%clk 0:01:22.1]} 14. Bxf4
{[%clk 0:02:39.2]} 14... Bxd7 {[%clk 0:00:35]} 15. Bxb8 {[%clk 0:02:39.9]} 15...
Be7 {[%clk 0:00:31.9]} 16. Rd1 {[%clk 0:02:39.6]} 16... b4 {[%clk 0:00:32.1]}
17. Ne4 {[%clk 0:02:40.3]} 17... Ba4 {[%clk 0:00:30.6]} 18. Rc1 {[%clk
0:02:33.4]} 18... O-O {[%clk 0:00:31.6]} 19. Bd6 {[%clk 0:02:32.3]} 19... Bxd6
{[%clk 0:00:24.4]} 20. Nxd6 {[%clk 0:02:34.2]} 20... Rd8 {[%clk 0:00:24.9]} 21.
Nxc4 {[%clk 0:02:34.5]} 21... Bb5 {[%clk 0:00:21.6]} 22. Bf3 {[%clk 0:02:30.6]}
22... g5 {[%clk 0:00:18.3]} 23. b3 {[%clk 0:02:25.3]} 23... Kg7 {[%clk
0:00:19.3]} 24. Kg2 {[%clk 0:02:26]} 24... f5 {[%clk 0:00:19.3]} 25. h3 {[%clk
0:02:25.6]} 25... Kg6 {[%clk 0:00:20.1]} 26. Ne5+ {[%clk 0:02:25.1]} 26... Kf6
{[%clk 0:00:21.4]} 27. Rxc5 {[%clk 0:02:26.7]} 27... Be8 {[%clk 0:00:20.2]} 28.
Nd3 {[%clk 0:02:20.9]} 28... h5 {[%clk 0:00:21.2]} 29. Bc6 {[%clk 0:02:19.9]}
29... Bg6 {[%clk 0:00:21.3]} 30. Nxb4 {[%clk 0:02:21]} 30... Rd2 {[%clk
0:00:21.6]} 31. Rc2 {[%clk 0:02:22.3]} 31... Rd1 {[%clk 0:00:22.2]} 32. Nd3
{[%clk 0:02:22.1]} 32... f4 {[%clk 0:00:23]} 33. gxf4 {[%clk 0:02:24]} 33...
gxf4 {[%clk 0:00:23.4]} 34. Rc1 {[%clk 0:02:23.4]} 34... Rd2 {[%clk 0:00:23.9]}
35. Nxf4 {[%clk 0:02:24.5]} 35... Bf5 {[%clk 0:00:22.6]} 36. Nxh5+ {[%clk
0:02:25.3]} 36... Kg5 {[%clk 0:00:23.2]} 37. Ng3 {[%clk 0:02:27.2]} 37... Rd6
{[%clk 0:00:24.2]} 38. Ne4+ {[%clk 0:02:27]} 38... Bxe4+ {[%clk 0:00:24]} 39.
Bxe4 {[%clk 0:02:28.9]} 39... Rd2 {[%clk 0:00:23.4]} 40. Rc2 {[%clk 0:02:29.7]}
1-0

[Event "*** Titled Tuesday Blitz"]
[Site "Chess.com"]
[Date "2019.08.06"]
[Round "1"]
[White "DanielNaroditsky"]
[Black "Quiet_Desperation"]
[Result "1-0"]
[WhiteElo "2988"]
[BlackElo "2500"]
[TimeControl "180+2"]
[EndTime "13:06:07 PDT"]
[Termination "DanielNaroditsky won by resignation"]

1. d4 {[%clk 0:03:01.2]} 1... Nf6 {[%clk 0:03:01.2]} 2. Nc3 {[%clk 0:03:00.6]}
2... e6 {[%clk 0:03:01.5]} 3. e4 {[%clk 0:03:01.9]} 3... d5 {[%clk 0:03:02.1]}
4. e5 {[%clk 0:03:03.3]} 4... Nfd7 {[%clk 0:03:03.4]} 5. Nf3 {[%clk 0:03:05.1]}
5... c5 {[%clk 0:03:02.2]} 6. dxc5 {[%clk 0:03:07]} 6... Nc6 {[%clk 0:03:02.8]}
7. Bf4 {[%clk 0:03:08.7]} 7... Nxc5 {[%clk 0:03:03.6]} 8. Be2 {[%clk 0:02:55.7]}
8... Be7 {[%clk 0:03:03.7]} 9. O-O {[%clk 0:02:56.9]} 9... O-O {[%clk
0:03:04.6]} 10. Nb5 {[%clk 0:02:56.2]} 10... a6 {[%clk 0:02:53.1]} 11. Nd6
{[%clk 0:02:52.5]} 11... Bxd6 {[%clk 0:02:52.4]} 12. exd6 {[%clk 0:02:54.4]}
12... Ne4 {[%clk 0:02:10.1]} 13. c4 {[%clk 0:02:55]} 13... Nxd6 {[%clk
0:02:07.8]} 14. cxd5 {[%clk 0:02:55.2]} 14... exd5 {[%clk 0:02:09.1]} 15. Qxd5
{[%clk 0:02:57.1]} 15... Nf5 {[%clk 0:02:02.6]} 16. Rfd1 {[%clk 0:02:47.5]}
16... Qxd5 {[%clk 0:01:57.2]} 17. Rxd5 {[%clk 0:02:49.4]} 17... Be6 {[%clk
0:01:58.1]} 18. Rd2 {[%clk 0:02:50.9]} 18... Rfd8 {[%clk 0:01:56.6]} 19. Rad1
{[%clk 0:02:48.7]} 19... Rxd2 {[%clk 0:01:57.5]} 20. Rxd2 {[%clk 0:02:50.6]}
20... Rd8 {[%clk 0:01:56.1]} 21. Rxd8+ {[%clk 0:02:51.6]} 21... Nxd8 {[%clk
0:01:57.3]} 22. a3 {[%clk 0:02:51.3]} 22... Nc6 {[%clk 0:01:57.1]} 23. Bd3
{[%clk 0:02:50]} 23... f6 {[%clk 0:01:47.8]} 24. Be4 {[%clk 0:02:47.4]} 24...
Bd7 {[%clk 0:01:40.6]} 25. Kf1 {[%clk 0:02:42.1]} 25... Kf7 {[%clk 0:01:39.1]}
26. g4 {[%clk 0:02:39.1]} 26... Nfe7 {[%clk 0:01:29.6]} 27. h3 {[%clk
0:02:36.8]} 27... g6 {[%clk 0:01:24.4]} 28. Bc2 {[%clk 0:02:31]} 28... Be6
{[%clk 0:01:23.5]} 29. Ke2 {[%clk 0:02:31.5]} 29... Bd5 {[%clk 0:01:20.8]} 30.
Be3 {[%clk 0:02:30.4]} 30... Bc4+ {[%clk 0:01:12.5]} 31. Kd2 {[%clk 0:02:30.3]}
31... Nd5 {[%clk 0:01:05.2]} 32. Bh6 {[%clk 0:02:31.2]} 32... Bf1 {[%clk
0:00:54.9]} 33. Bb3 {[%clk 0:02:31.7]} 33... Ke6 {[%clk 0:00:55.1]} 34. h4
{[%clk 0:02:31.5]} 34... Bh3 {[%clk 0:00:25]} 35. g5 {[%clk 0:02:29.2]} 35... f5
{[%clk 0:00:21.8]} 36. Bg7 {[%clk 0:02:27.7]} 36... Bg2 {[%clk 0:00:19.2]} 37.
Ne1 {[%clk 0:02:26.8]} 37... Bh3 {[%clk 0:00:16.4]} 38. Nd3 {[%clk 0:02:28]}
38... Bg4 {[%clk 0:00:12.1]} 39. Nf4+ {[%clk 0:02:27.1]} 1-0

[Event "*** Titled Tuesday Blitz"]
[Site "Chess.com"]
[Date "2019.08.06"]
[Round "1"]
[White "sergiochess83"]
[Black "santosalberto1987"]
[Result "1-0"]
[WhiteElo "2906"]
[BlackElo "2476"]
[TimeControl "180+2"]
[EndTime "13:06:17 PDT"]
[Termination "sergiochess83 won by resignation"]

1. e4 {[%clk 0:03:01.9]} 1... e6 {[%clk 0:02:59.4]} 2. d4 {[%clk 0:03:02.2]}
2... d5 {[%clk 0:02:59.9]} 3. Nd2 {[%clk 0:03:03.8]} 3... c5 {[%clk 0:02:59.9]}
4. Ngf3 {[%clk 0:03:02.9]} 4... cxd4 {[%clk 0:02:59.4]} 5. Nxd4 {[%clk
0:03:03.3]} 5... Nf6 {[%clk 0:03:00.2]} 6. exd5 {[%clk 0:03:03.5]} 6... Nxd5
{[%clk 0:03:01.1]} 7. N2f3 {[%clk 0:02:52.4]} 7... Be7 {[%clk 0:02:59.7]} 8. Bd3
{[%clk 0:02:48.7]} 8... O-O {[%clk 0:02:56.8]} 9. O-O {[%clk 0:02:49.1]} 9... a6
{[%clk 0:02:50.4]} 10. c3 {[%clk 0:02:46.7]} 10... b5 {[%clk 0:02:49.7]} 11. a4
{[%clk 0:02:40.5]} 11... b4 {[%clk 0:02:49.4]} 12. c4 {[%clk 0:02:40.6]} 12...
Nf6 {[%clk 0:02:48.1]} 13. b3 {[%clk 0:02:36.5]} 13... Bb7 {[%clk 0:02:47.4]}
14. Bb2 {[%clk 0:02:37.6]} 14... Qc7 {[%clk 0:02:38.9]} 15. Qe2 {[%clk
0:02:36.5]} 15... Nc6 {[%clk 0:02:32.6]} 16. Rfe1 {[%clk 0:02:19.5]} 16... Rad8
{[%clk 0:02:20.7]} 17. Bc2 {[%clk 0:02:08.9]} 17... Nd7 {[%clk 0:01:48.2]} 18.
Nxe6 {[%clk 0:01:45]} 18... fxe6 {[%clk 0:01:48]} 19. Qxe6+ {[%clk 0:01:46]}
19... Rf7 {[%clk 0:01:28.1]} 20. Bxh7+ {[%clk 0:01:40.6]} 20... Kxh7 {[%clk
0:01:23.4]} 21. Qxf7 {[%clk 0:01:39.4]} 21... Bf8 {[%clk 0:00:14.8]} 22. Ng5+
{[%clk 0:01:33.3]} 22... Kh6 {[%clk 0:00:15.7]} 23. Re6+ {[%clk 0:01:28.6]}
23... Nf6 {[%clk 0:00:14]} 24. Qxc7 {[%clk 0:01:21.9]} 1-0